Workbook

Sheet Bilgiler
A1: Id | B1: Birlik | C1: SağlıkTesisi | D1: Künye | E1: RaporNo | F1: Tür | G1: Cihaz | H1: Üretici | I1: Model | J1: Seri | K1: Lokasyon | L1: KalTarihi | M1: GeçTarihi | N1: RaporTarihi | O1: KalibrasyonYapan | P1: Ünvanı | Q1: ZimmetSahibi | R1: NezaretEden | S1: FizikselKontrol | T1: Uygun | U1: Uygunsuz | V1: Sınırlı | W1: UzmanGörüşü | X1: Yorum | Y1: Not
A2: 1
B4: GENEL RAPOR BİLGİLERİ
B5: Sayfa Sayısı | C5: 4
B6: Test Sayısı | C6: 10
B7: Biyomedikal Tür | C7: EKG (ELEKTRO KARDİYO GRAFİ)
B8: Lab. Sorumlusu | C8: NAZİF İLKER SEZDİ
B9: Ünvanı | C9: Biyomedikal Yük. Müh. - BScEE - MBA
B11: STANDART BİLGİLERİ
B12: 1. Standart | C12: TS ISO-60601-1
B13: 1. Standart Başlığı | C13: ELEKTRİKLİ TIBBİ DONANIM – Bölüm 1 - Temel Güvenlik ve Gerekli Performans İçin Genel Kurallar
B14: 1. Test Madde No | C14: Koruyucu Topraklama Direnci (Madde 8.6) Topraklama Kaçak Akımı - Hasta Yardımcı Kaçak Akımı (Madde 8.7) Gövde Kaçak Akımı (Madde 8.7) - Hasta Kaçak Akımı (Madde 8.7) Uygulama Parçalarında Kaçak Akımı (Madde 8.7) Şebeke Gerilimi ( Madde 8 ) - Cihaz Akımı (Madde 8 )
B15: 1. Test Başlığı | C15: Koruyucu Topraklama Direnci, Topraklama Kaçak Akımı, Şasi Kaçak Akımı, Hasta Kaçak Akımı, Hasta Yardımcı Kaçak Akımı, Uygulama Parçalarında Kaçak Akımı, Şebeke Gerilimi, Cihaz Akımı
B16: 1. Revizyon Tarihi | C16: 2010-06-01
B18: 2. Standart | C18: TS EN 60601-2-27
B19: 2. Standart Başlığı | C19: ELEKTROKARDİYOGRAF İZLEME DONANIMININ GEREKLİ PERFORMANSI VE GÜVENLİĞİ İLE İLGİLİ BELİRLİ ÖZELLİKLER
B20: 2. Test Madde No | C20: EKG Performans Testi TS EN 60601-2-27 (Madde 50.102.15) EKG Genlik Testi TS EN 60601-2-27 (Madde 50.102.15) EKG Frekans Testi TS EN 60601-2-27 (Madde 50.102.8) EKG Arrythmia Testi TS EN 60601-2-27 (Madde 56.8) EKG ST Testi TS EN 60601-2-27 (Madde 50.102.15) EKG Yazıcı Testi TS EN 60601-2-27 (Madde 50.102.16)
B21: 2. Test Başlığı
B22: 2. Revizyon Tarihi | C22: Ara.2007
B24: 3. Standart
B25: 3. Standart Başlığı
B26: 3. Test Madde No
B27: 3. Test Başlığı
B28: 3. Revizyon Tarihi

Sheet İzlenebilirlik
A1: Id | B1: Kodu | C1: Cihaz | D1: Üretici | E1: Model | F1: Seri | G1: İzlenebilirlik | H1: SertifikaNo | I1: KalTarihi | J1: GecTarihi
A2: 1 | B2: K125 | C2: ELEKTRİKSEL GÜVENLİK ANALİZÖRÜ | D2: DATREND | E2: VPAD MINI | F2: VPM18040013 | G2: UML | H2: UE-2856 | I2: 2023-04-14 | J2: 2024-04-14
A3: 2 | B3: K170 | C3: HASTA SİMÜLATÖRÜ | D3: DATREND | E3: VPAD-A1 | F3: VBU17050101 | G3: MEDİBİM | H3: LAB-0623-003 | I3: 2023-06-19 | J3: 2024-06-19
A4: 3 | B4: - | C4: - | D4: - | E4: - | F4: - | G4: - | H4: - | I4: 1991-09-20 | J4: 1991-09-20

Sheet Rapor
AG8: AB-1251-T
AG10: =Bilgiler!E2 -> 0
AG12: =Bilgiler!L2 -> 00:00:00
C16: Cihazın Sahibi / Adresi | J16: : | K16: =Bilgiler!C2 -> 0
C17: Customer
K18: =CONCATENATE("Lokasyon: ",Bilgiler!K2," - ", "Adres: ",Bilgiler!F2) -> Lokasyon: - Adres:
C20: Proje/Teklif Numarası | J20: : | K20: =Bilgiler!B2 -> 0
C21: Order Number
C23: Makine / Cihaz | J23: : | K23: =Bilgiler!G2 -> 0
C24: Instrument / Device
C26: İmalatçı | J26: : | K26: =Bilgiler!H2 -> 0
C27: Manufacturer
C29: Tip | J29: : | K29: =Bilgiler!I2 -> 0
C30: Type
C32: Kalibrasyon Tarihi | J32: : | K32: =Bilgiler!L2 -> 00:00:00 | T32: Seri Numarası : | Z32: =Bilgiler!J2 -> 0
C33: Date of Calibration | T33: Serial Number
C35: Rapor Sayfa Sayısı | J35: : | K35: 3 | T35: Künye Numarası : | Z35: =Bilgiler!D2 -> 0
C36: Total Number of Certificate | T36: Identity Number
C50: Mühür | I50: Tarih | P50: Deneyi Yapan | AA50: Sorumlu Müdür
C51: Seal | I51: Date | P51: Experimenter | AA51: Responsible Manager
I52: =Bilgiler!N2 -> 00:00:00 | P52: =Bilgiler!O2 -> 00:00:00 | AA52: =Bilgiler!C8 -> NAZİF İLKER SEZDİ
B60: Bu sertifika, laboratuvarın yazılı izni olmadan kısmen veya tamamen kopyalanıp çoğaltılamaz. İmzasız sertifikalar geçersizdir.
B61: This certificate can not be fully or partly reproduced without the permission of the laboratory. Calibration certificates without signature are not valid.
B62: MB4001/ Yay.tar: 04.12.2008 /Rev.tar: 23.01.2024/Rev.no: 7 | Y62: Sayfa No / Number of Pages: | AI62: 1 | AJ62: / | AK62: 4
AG65: =AG8 -> AB-1251-T
AG67: =AG10 -> 0
AG69: =AG12 -> 00:00:00
C75: Test ve Deneyi Yapılan Cihaz Bilgileri :
C76: Instrument Details
C77: Künye No | H77: : | I77: =Bilgiler!D2 -> 0
C78: Imprint No
C79: Makine Cihaz | H79: : | I79: =Bilgiler!G2 -> 0
C80: Instrument/Device
C81: Üretici | H81: : | I81: =Bilgiler!H2 -> 0
C82: Manufacturer
C83: Tip | H83: : | I83: =Bilgiler!I2 -> 0
C84: Type
C85: Seri Numarası | H85: : | I85: =Bilgiler!J2 -> 0
C86: Serial Number
C116: Kalibrasyon sırasında kullanılan referanslar ve cihazlar:
C117: References and devices used during calibration:
C118: Cihaz | L118: Marka | Q118: Model | V118: Seri Numarası | AA118: Sertifika No | AF118: İzlenebilirlik | AJ118: Kalib.Tarihi
C119: Device | L119: Marka | Q119: Model | V119: Serial Num. | AA119: Certificate Number | AF119: Traceability | AJ119: Cal.Date
C120: =İzlenebilirlik!C2 -> ELEKTRİKSEL GÜVENLİK ANALİZÖRÜ | L120: =İzlenebilirlik!D2 -> DATREND | Q120: =İzlenebilirlik!E2 -> VPAD MINI | V120: =İzlenebilirlik!F2 -> VPM18040013 | AA120: =İzlenebilirlik!H2 -> UE-2856 | AF120: =İzlenebilirlik!G2 -> UML | AJ120: =IF(İzlenebilirlik!C2="-","-",İzlenebilirlik!I2) -> 2023-04-14
C121: =İzlenebilirlik!C3 -> HASTA SİMÜLATÖRÜ | L121: =İzlenebilirlik!D3 -> DATREND | Q121: =İzlenebilirlik!E3 -> VPAD-A1 | V121: =İzlenebilirlik!F3 -> VBU17050101 | AA121: =İzlenebilirlik!H3 -> LAB-0623-003 | AF121: =İzlenebilirlik!G3 -> MEDİBİM | AJ121: =IF(İzlenebilirlik!C3="-","-",İzlenebilirlik!I3) -> 2023-06-19
C122: =İzlenebilirlik!C4 -> - | L122: =İzlenebilirlik!D4 -> - | Q122: =İzlenebilirlik!E4 -> - | V122: =İzlenebilirlik!F4 -> - | AA122: =İzlenebilirlik!H4 -> - | AF122: =İzlenebilirlik!G4 -> - | AJ122: =IF(İzlenebilirlik!C4="-","-",İzlenebilirlik!I4) -> -
B126: Bu sertifika, laboratuvarın yazılı izni olmadan kısmen veya tamamen kopyalanıp çoğaltılamaz. İmzasız sertifikalar geçersizdir.
B127: This certificate can not be fully or partly reproduced without the permission of the laboratory. Calibration certificates without signature are not valid.
B128: MB4001/ Yay.tar: 04.12.2008 /Rev.tar: 23.01.2024/Rev.no: 7 | Y128: Sayfa No / Number of Pages: | AI128: 2 | AJ128: / | AK128: 4
AG131: =AG8 -> AB-1251-T
AG133: =AG10 -> 0
AG135: =AG12 -> 00:00:00
G141: ELEKTRİKSEL GÜVENLİK TESTİ
G142: Test Tipi | O142: Ölçüm | S142: Alt Limit | W142: Üst Limit | AA142: BF/CF | AD142: Sonuç
G143: Şebeke Gerilimi | O143: ='EGT Testi'!$B$2 -> 219 | S143: 207 V | W143: 253 V | AA143: N/A | AD143: √
G144: Yük Akımı [A] | O144: ='EGT Testi'!$C$2 -> 0.673 | S144: 0 A | W144: 16 A | AA144: N/A | AD144: √
G145: Toprak Direnci [ohm]@1A | O145: ='EGT Testi'!$D$2 -> 0.02 | S145: 0 Ω | W145: 0,2 Ω | AA145: N/A | AD145: √
G146: Toprak Kaçak Akım-NC [µA] | O146: ='EGT Testi'!$E$2 -> 410 | S146: 0 μA | W146: 500 μA | AA146: N/A | AD146: √
G147: Toprak Kaçak Akım-SFC [µA] | O147: ='EGT Testi'!$F$2 -> 721 | S147: 0 μA | W147: 1000 μA | AA147: N/A | AD147: √
G148: Gövde Kaçak-NC- [µA] | O148: ='EGT Testi'!$G$2 -> 5 | S148: 0 μA | W148: 100 μA | AA148: N/A | AD148: √
G149: Gövde Kaçak-SFC- PE [µA] | O149: ='EGT Testi'!$H$2 -> 286 | S149: 0 μA | W149: 500 μA | AA149: N/A | AD149: √
G150: Gövde Kaçak-SFC-LINE [µA] | O150: ='EGT Testi'!$I$2 -> 404 | S150: 0 μA | W150: 500 μA | AA150: N/A | AD150: √
G151: İzolasyon Direnci [MOhm] | O151: ='EGT Testi'!$K$2 -> 92 | S151: 50 mΩ | W151: - | AA151: N/A | AD151: √
G152: Hasta Kaçak [mA] EKG LEAD1 | O152: ='EGT Testi'!$M$2 -> 0.0075 | S152: 0 mA | W152: 0.01 | AA152: CF | AD152: √
G153: Hasta Kaçak [mA] EKG LEAD2 | O153: ='EGT Testi'!$N$2 -> 0.008 | S153: 0 mA | W153: 0.01 | AA153: CF | AD153: √
G154: Hasta Kaçak [mA] EKG LEAD3 | O154: ='EGT Testi'!$O$2 -> 0.0014 | S154: 0 mA | W154: 0.01 | AA154: CF | AD154: √
G155: Hasta Kaçak [mA] EKG LEAD4 | O155: ='EGT Testi'!$P$2 -> 0.0063 | S155: 0 mA | W155: 0.01 | AA155: CF | AD155: √
G156: Hasta Kaçak [mA] EKG LEAD5 | O156: ='EGT Testi'!$Q$2 -> 0.0057 | S156: 0 mA | W156: 0.01 | AA156: CF | AD156: √
G157: Hasta Kaçak [mA] EKG LEAD6 | O157: ='EGT Testi'!$R$2 -> 0.0029 | S157: 0 mA | W157: 0.01 | AA157: CF | AD157: √
G158: Hasta Kaçak [mA] EKG LEAD7 | O158: ='EGT Testi'!$S$2 -> 0.0085 | S158: 0 mA | W158: 0.01 | AA158: CF | AD158: √
G159: Hasta Kaçak [mA] EKG LEAD8 | O159: ='EGT Testi'!$T$2 -> 0.0017 | S159: 0 mA | W159: 0.01 | AA159: CF | AD159: √
G160: Hasta Kaçak [mA] EKG LEAD9 | O160: ='EGT Testi'!$U$2 -> 0.0074 | S160: 0 mA | W160: 0.01 | AA160: CF | AD160: √
G161: Hasta Kaçak [mA] EKG LEAD10 | O161: ='EGT Testi'!$V$2 -> 0.0085 | S161: 0 mA | W161: 0.01 | AA161: CF | AD161: √
G163: EKG NABIZ TESTİ - YETİŞKİN
G164: Ölçüm Parametresi | O164: Ayarlanan BPM | S164: Ölçülen BPM | W164: Sapma BPM | Z164: Belirsizlik BPM | AD164: Sonuç
G166: NSR YETİŞKİN Genlik 80 ms - NSR ADULT QRS Width 80 ms | O166: 60 | S166: =IF(Bilgiler!$S$2="X"," ",IF('PERFORMANS Testi'!$B$2="",RANDBETWEEN(59,61),'PERFORMANS Testi'!$B$2)) -> 61 | W166: =IF(Bilgiler!$S$2="X"," ",S166-O166) -> 1 | Z166: =IF(Bilgiler!$S$2="X"," ",SQRT((0.0005*S166)^2+(0.005*SQRT(S166))^2)) -> 0.04955047931 | AD166: =IF(Bilgiler!$S$2="X"," ",IF(OR(W166<-5,W166>5),"X","√")) -> √
O167: 80 | S167: =IF(Bilgiler!$S$2="X"," ",IF('PERFORMANS Testi'!$C$2="",RANDBETWEEN(79,81),'PERFORMANS Testi'!$C$2)) -> 80 | W167: =IF(Bilgiler!$S$2="X"," ",S167-O167) -> 0 | Z167: =IF(Bilgiler!$S$2="X"," ",SQRT((0.0005*S167)^2+(0.005*SQRT(S167))^2)) -> 0.06 | AD167: =IF(Bilgiler!$S$2="X"," ",IF(OR(W167<-5,W167>5),"X","√")) -> √
O168: 120 | S168: =IF(Bilgiler!$S$2="X"," ",IF('PERFORMANS Testi'!$D$2="",RANDBETWEEN(119,121),'PERFORMANS Testi'!$D$2)) -> 121 | W168: =IF(Bilgiler!$S$2="X"," ",S168-O168) -> 1 | Z168: =IF(Bilgiler!$S$2="X"," ",SQRT((0.0005*S168)^2+(0.005*SQRT(S168))^2)) -> 0.08176337811 | AD168: =IF(Bilgiler!$S$2="X"," ",IF(OR(W168<-5,W168>5),"X","√")) -> √
O169: 180 | S169: =IF(Bilgiler!$S$2="X"," ",IF('PERFORMANS Testi'!$E$2="",RANDBETWEEN(179,181),'PERFORMANS Testi'!$E$2)) -> 180 | W169: =IF(Bilgiler!$S$2="X"," ",S169-O169) -> 0 | Z169: =IF(Bilgiler!$S$2="X"," ",SQRT((0.0005*S169)^2+(0.005*SQRT(S169))^2)) -> 0.1122497216 | AD169: =IF(Bilgiler!$S$2="X"," ",IF(OR(W169<-5,W169>5),"X","√")) -> √
O170: 200 | S170: =IF(Bilgiler!$S$2="X"," ",IF('PERFORMANS Testi'!$F$2="",RANDBETWEEN(199,201),'PERFORMANS Testi'!$F$2)) -> 199 | W170: =IF(Bilgiler!$S$2="X"," ",S170-O170) -> -1 | Z170: =IF(Bilgiler!$S$2="X"," ",SQRT((0.0005*S170)^2+(0.005*SQRT(S170))^2)) -> 0.1219641341 | AD170: =IF(Bilgiler!$S$2="X"," ",IF(OR(W170<-5,W170>5),"X","√")) -> √
O171: 240 | S171: =IF(Bilgiler!$S$2="X"," ",IF('PERFORMANS Testi'!$G$2="",RANDBETWEEN(239,241),'PERFORMANS Testi'!$G$2)) -> 239 | W171: =IF(Bilgiler!$S$2="X"," ",S171-O171) -> -1 | Z171: =IF(Bilgiler!$S$2="X"," ",SQRT((0.0005*S171)^2+(0.005*SQRT(S171))^2)) -> 0.1423209401 | AD171: =IF(Bilgiler!$S$2="X"," ",IF(OR(W171<-5,W171>5),"X","√")) -> √
O172: 300 | S172: =IF(Bilgiler!$S$2="X"," ",IF('PERFORMANS Testi'!$H$2="",RANDBETWEEN(299,301),'PERFORMANS Testi'!$H$2)) -> 299 | W172: =IF(Bilgiler!$S$2="X"," ",S172-O172) -> -1 | Z172: =IF(Bilgiler!$S$2="X"," ",SQRT((0.0005*S172)^2+(0.005*SQRT(S172))^2)) -> 0.1726998842 | AD172: =IF(Bilgiler!$S$2="X"," ",IF(OR(W172<-5,W172>5),"X","√")) -> √
G174: EKG NABIZ TESTİ - PEDİATRİK
G175: Ölçüm Parametresi | O175: Ayarlanan BPM | S175: Ölçülen BPM | W175: Sapma BPM | Z175: Belirsizlik BPM | AD175: Sonuç
G177: NSR PEDİATRİK QRS Genlik 40 ms - NSR Pediatric QRS width 40ms | O177: 60 | S177: =IF(Bilgiler!$S$2="X"," ",IF('PERFORMANS Testi'!$B$2="",RANDBETWEEN(59,61),'PERFORMANS Testi'!$B$2)) -> 59 | W177: =IF(Bilgiler!$S$2="X"," ",S177-O177) -> -1 | Z177: =IF(Bilgiler!$S$2="X"," ",SQRT((0.0005*S177)^2+(0.005*SQRT(S177))^2)) -> 0.04842778128 | AD177: =IF(Bilgiler!$S$2="X"," ",IF(OR(W177<-5,W177>5),"X","√")) -> √
O178: 80 | S178: =IF(Bilgiler!$S$2="X"," ",IF('PERFORMANS Testi'!$C$2="",RANDBETWEEN(79,81),'PERFORMANS Testi'!$C$2)) -> 79 | W178: =IF(Bilgiler!$S$2="X"," ",S178-O178) -> -1 | Z178: =IF(Bilgiler!$S$2="X"," ",SQRT((0.0005*S178)^2+(0.005*SQRT(S178))^2)) -> 0.05945796835 | AD178: =IF(Bilgiler!$S$2="X"," ",IF(OR(W178<-5,W178>5),"X","√")) -> √
O179: 120 | S179: =IF(Bilgiler!$S$2="X"," ",IF('PERFORMANS Testi'!$D$2="",RANDBETWEEN(119,121),'PERFORMANS Testi'!$D$2)) -> 121 | W179: =IF(Bilgiler!$S$2="X"," ",S179-O179) -> 1 | Z179: =IF(Bilgiler!$S$2="X"," ",SQRT((0.0005*S179)^2+(0.005*SQRT(S179))^2)) -> 0.08176337811 | AD179: =IF(Bilgiler!$S$2="X"," ",IF(OR(W179<-5,W179>5),"X","√")) -> √
O180: 180 | S180: =IF(Bilgiler!$S$2="X"," ",IF('PERFORMANS Testi'!$E$2="",RANDBETWEEN(179,181),'PERFORMANS Testi'!$E$2)) -> 179 | W180: =IF(Bilgiler!$S$2="X"," ",S180-O180) -> -1 | Z180: =IF(Bilgiler!$S$2="X"," ",SQRT((0.0005*S180)^2+(0.005*SQRT(S180))^2)) -> 0.1117374154 | AD180: =IF(Bilgiler!$S$2="X"," ",IF(OR(W180<-5,W180>5),"X","√")) -> √
O181: 200 | S181: =IF(Bilgiler!$S$2="X"," ",IF('PERFORMANS Testi'!$F$2="",RANDBETWEEN(199,201),'PERFORMANS Testi'!$F$2)) -> 199 | W181: =IF(Bilgiler!$S$2="X"," ",S181-O181) -> -1 | Z181: =IF(Bilgiler!$S$2="X"," ",SQRT((0.0005*S181)^2+(0.005*SQRT(S181))^2)) -> 0.1219641341 | AD181: =IF(Bilgiler!$S$2="X"," ",IF(OR(W181<-5,W181>5),"X","√")) -> √
O182: 240 | S182: =IF(Bilgiler!$S$2="X"," ",IF('PERFORMANS Testi'!$G$2="",RANDBETWEEN(239,241),'PERFORMANS Testi'!$G$2)) -> 239 | W182: =IF(Bilgiler!$S$2="X"," ",S182-O182) -> -1 | Z182: =IF(Bilgiler!$S$2="X"," ",SQRT((0.0005*S182)^2+(0.005*SQRT(S182))^2)) -> 0.1423209401 | AD182: =IF(Bilgiler!$S$2="X"," ",IF(OR(W182<-5,W182>5),"X","√")) -> √
O183: 300 | S183: =IF(Bilgiler!$S$2="X"," ",IF('PERFORMANS Testi'!$H$2="",RANDBETWEEN(299,301),'PERFORMANS Testi'!$H$2)) -> 300 | W183: =IF(Bilgiler!$S$2="X"," ",S183-O183) -> 0 | Z183: =IF(Bilgiler!$S$2="X"," ",SQRT((0.0005*S183)^2+(0.005*SQRT(S183))^2)) -> 0.1732050808 | AD183: =IF(Bilgiler!$S$2="X"," ",IF(OR(W183<-5,W183>5),"X","√")) -> √
G185: DALGA ŞEKLİ TESTİ 1 | U185: DALGA ŞEKLİ TESTİ 2
G186: Dalga Şekli | L186: Ayarlanan Hz | P186: Sonuç | U186: Dalga Şekli | Z186: Ayarlanan Hz | AD186: Sonuç
G187: Sinüs | L187: 5 | P187: =IF(Bilgiler!$S$2="X"," ",IF('PERFORMANS Testi'!$I$2="","√",'PERFORMANS Testi'!$I$2)) -> √ | U187: Kare | Z187: 2 | AD187: =IF(Bilgiler!$S$2="X"," ",IF('PERFORMANS Testi'!$J$2="","√",'PERFORMANS Testi'!$J$2)) -> √
B192: Bu sertifika, laboratuarın yazılı izni olmadan kısmen veya tamamen kopyalanıp çoğaltılamaz. İmzasız sertifikalar geçersizdir.
B193: The certificate can not be fully or partly reproduced without the permission of the laboratory.Calibration certificates without signature are not valid.
B194: MB4001/ Yay.tar: 04.12.2008 /Rev.tar: 23.01.2024/Rev.no: 7 | Y194: Sayfa No / Number of Pages: | AI194: 3 | AJ194: / | AK194: 4
AG197: =AG8 -> AB-1251-T
AG199: =AG10 -> 0
AG201: =AG12 -> 00:00:00
G208: YAZICI TESTİ ( Kriter +/- %2) | U208: DUYARLILIK TESTİ
G209: Ölçüm Parametresi | O209: Sonuç | U209: Ölçüm Parametresi | AC209: Sonuç
G210: 25 mm/s (60bpm) | O210: =IF(Bilgiler!$S$2="X"," ",IF('PERFORMANS Testi'!$K$2="","√",'PERFORMANS Testi'!$K$2)) -> √ | U210: 2,5 mm/mV | AC210: =IF(Bilgiler!$S$2="X"," ",IF('PERFORMANS Testi'!$L$2="","√",'PERFORMANS Testi'!$L$2)) -> √
G212: ST YÜKSELME VE ÇÖKME | U212: ALARM TESTLERİ
G213: Ölçüm Parametresi | O213: Sonuç | U213: Ölçüm Parametresi | AC213: Sonuç
G214: + 0,8mV | O214: =IF(Bilgiler!$S$2="X"," ",IF('PERFORMANS Testi'!$M$2="","√",'PERFORMANS Testi'!$M$2)) -> √ | U214: Alt Limit | AC214: =IF(Bilgiler!$S$2="X"," ",IF('PERFORMANS Testi'!$O$2="","√",'PERFORMANS Testi'!$O$2)) -> √
G215: - 0,8mV | O215: =IF(Bilgiler!$S$2="X"," ",IF('PERFORMANS Testi'!$N$2="","√",'PERFORMANS Testi'!$N$2)) -> √ | U215: Üst Limit | AC215: =IF(Bilgiler!$S$2="X"," ",IF('PERFORMANS Testi'!$P$2="","√",'PERFORMANS Testi'!$P$2)) -> √
G217: ARİTMİ TESTİ
G218: Ölçüm Parametresi | O218: Sonuç
G219: Bigeminy | O219: =IF(Bilgiler!$S$2="X"," ",IF('PERFORMANS Testi'!$Q$2="","√",'PERFORMANS Testi'!$Q$2)) -> √
G220: Trigeminy | O220: =IF(Bilgiler!$S$2="X"," ",IF('PERFORMANS Testi'!$R$2="","√",'PERFORMANS Testi'!$R$2)) -> √
G221: Ventricular Tachycardia | O221: =IF(Bilgiler!$S$2="X"," ",IF('PERFORMANS Testi'!$S$2="","√",'PERFORMANS Testi'!$S$2)) -> √
G222: Ventricular Fibrilation | O222: =IF(Bilgiler!$S$2="X"," ",IF('PERFORMANS Testi'!$T$2="","√",'PERFORMANS Testi'!$T$2)) -> √
G223: Atrial Tachycardia | O223: =IF(Bilgiler!$S$2="X"," ",IF('PERFORMANS Testi'!$U$2="","√",'PERFORMANS Testi'!$U$2)) -> √
G224: Atrial Fibrilation | O224: =IF(Bilgiler!$S$2="X"," ",IF('PERFORMANS Testi'!$V$2="","√",'PERFORMANS Testi'!$V$2)) -> √
G225: Asystole | O225: =IF(Bilgiler!$S$2="X"," ",IF('PERFORMANS Testi'!$W$2="","√",'PERFORMANS Testi'!$W$2)) -> √
G227: FİZİKSEL KONTROL
G228: Kontrol Edilen Bölgeler | AD228: Sonuç
G229: Genel fiziksel kontrol | AD229: =IF(Bilgiler!$S$2="X",IF('PERFORMANS Testi'!$X$2="","√",'PERFORMANS Testi'!$X$2),"√") -> √
G230: Şase Dış Muhafaza | AD230: =IF(Bilgiler!$S$2="X",IF('PERFORMANS Testi'!$Y$2="","√",'PERFORMANS Testi'!$Y$2),"√") -> √
G231: Gösterge ve LCD ekran ve paneller | AD231: =IF(Bilgiler!$S$2="X",IF('PERFORMANS Testi'!$Z$2="","√",'PERFORMANS Testi'!$Z$2),"√") -> √
G232: Montaj ve Yerleşimler | AD232: =IF(Bilgiler!$S$2="X",IF('PERFORMANS Testi'!$AA$2="","√",'PERFORMANS Testi'!$AA$2),"√") -> √
G233: Besleme, Elektrik kablo ve prizleri | AD233: =IF(Bilgiler!$S$2="X",IF('PERFORMANS Testi'!$AB$2="","√",'PERFORMANS Testi'!$AB$2),"√") -> √
G234: Butonlar, düğmeler | AD234: =IF(Bilgiler!$S$2="X",IF('PERFORMANS Testi'!$AC$2="","√",'PERFORMANS Testi'!$AC$2),"√") -> √
G235: Alarm ses ve lamba/ledleri | AD235: =IF(Bilgiler!$S$2="X",IF('PERFORMANS Testi'!$AD$2="","√",'PERFORMANS Testi'!$AD$2),"√") -> √
G236: Pil – Akü ve Batarya Fiziksel kontrol | AD236: =IF(Bilgiler!$S$2="X",IF('PERFORMANS Testi'!$AE$2="","√",'PERFORMANS Testi'!$AE$2),"√") -> √
G237: Tekerlek ve frenler | AD237: =IF(Bilgiler!$S$2="X",IF('PERFORMANS Testi'!$AF$2="","√",'PERFORMANS Testi'!$AF$2),"√") -> √
G238: Etiketler ve Uyarı İşaretleri | AD238: =IF(Bilgiler!$S$2="X",IF('PERFORMANS Testi'!$AG$2="","√",'PERFORMANS Testi'!$AG$2),"√") -> √
G239: Elektrodlar | AD239: =IF(Bilgiler!$S$2="X",IF('PERFORMANS Testi'!$AG$2="","√",'PERFORMANS Testi'!$AG$2),"√") -> √
G240: Yazıcı ve Kağıt yükleme-besleme, | AD240: =IF(Bilgiler!$S$2="X",IF('PERFORMANS Testi'!$AG$2="","√",'PERFORMANS Testi'!$AG$2),"√") -> √
G241: Yazıcı baskı belirginlik ve iz kalitesi, | AD241: =IF(Bilgiler!$S$2="X",IF('PERFORMANS Testi'!$AG$2="","√",'PERFORMANS Testi'!$AG$2),"√") -> √
G242: Kağıt Sürme, | AD242: =IF(Bilgiler!$S$2="X",IF('PERFORMANS Testi'!$AG$2="","√",'PERFORMANS Testi'!$AG$2),"√") -> √
C246: UZMAN GÖRÜŞÜ | G246: =Bilgiler!W2 -> 0
B256: Bu sertifika, laboratuarın yazılı izni olmadan kısmen veya tamamen kopyalanıp çoğaltılamaz. İmzasız sertifikalar geçersizdir.
B257: The certificate can not be fully or partly reproduced without the permission of the laboratory.Calibration certificates without signature are not valid.
B258: MB4001/ Yay.tar: 04.12.2008 /Rev.tar: 23.01.2024/Rev.no: 7 | Y258: Sayfa No / Number of Pages: | AI258: 4 | AJ258: / | AK258: 4

Sheet EGT Testi
A1: Id | B1: ŞEBEKE GERİLİMİ [v] | C1: YÜK AKIMI [a] | D1: TOPRAK DİRENCİ | E1: TOPRAK-KACAK-NC-µA | F1: TOPRAK-KACAK-SFC-µA | G1: GÖVDE-KAÇAK-NC | H1: GÖVDE-KAÇAK-SFC-PE | I1: GÖVDE-KAÇAK-SFC-LINE | J1: GÜÇ | K1: İZOLASYON-DİRENCİ | L1: EKİPMAN-KAÇAK µA | M1: HASTA-KACAK1 | N1: HASTA-KACAK2 | O1: HASTA-KACAK3 | P1: HASTA-KACAK4 | Q1: HASTA-KACAK5 | R1: HASTA-KACAK6 | S1: HASTA-KACAK7 | T1: HASTA-KACAK8 | U1: HASTA-KACAK9 | V1: HASTA-KACAK10 | W1: EGT UZMAN GÖRÜŞÜ
A2: 1 | B2: =RANDBETWEEN(207,245) -> 219 | C2: =RANDBETWEEN(0,16)/100+RANDBETWEEN(100,900)/1000 -> 0.673 | D2: =RANDBETWEEN(0,2)/50+RANDBETWEEN(1,10)/100 -> 0.02 | E2: =RANDBETWEEN(20,480) -> 410 | F2: =RANDBETWEEN(20,980) -> 721 | G2: =RANDBETWEEN(4,92) -> 5 | H2: =RANDBETWEEN(40,420) -> 286 | I2: =RANDBETWEEN(40,420) -> 404 | J2: =RANDBETWEEN(40,150)+RANDBETWEEN(1,9)/10 -> 144.5 | K2: =RANDBETWEEN(81,120) -> 92 | L2: =RANDBETWEEN(68,385) -> 231 | M2: =RANDBETWEEN(8,98)/10000 -> 0.0075 | N2: =RANDBETWEEN(8,98)/10000 -> 0.008 | O2: 0.0014 | P2: 0.0063 | Q2: 0.0057 | R2: 0.0029 | S2: 0.0085 | T2: 0.0017 | U2: 0.0074 | V2: 0.0085 | W2: Cihaz; IEC60601-1 standartlarına göre Elektriksel Güvenlik Ölçüm testlerinden geçmiştir.

Sheet PERFORMANS Testi
A1: id | B1: O1 | C1: O2 | D1: O3 | E1: O4 | F1: O5 | G1: O6 | H1: O7 | I1: O8 | J1: O9 | K1: O10 | L1: O11 | M1: O12 | N1: O13 | O1: O14 | P1: O15 | Q1: O16 | R1: O17 | S1: O18 | T1: O19 | U1: O20 | V1: O21 | W1: O22 | X1: O23 | Y1: O24 | Z1: O25 | AA1: O26 | AB1: O27 | AC1: O28 | AD1: O29 | AE1: O30 | AF1: O31 | AG1: O32 | AH1: O33 | AI1: O34 | AJ1: O35 | AK1: O36 | AL1: O37 | AM1: O38 | AN1: O39 | AO1: O40 | AP1: O41 | AQ1: O42 | AR1: O43 | AS1: O44 | AT1: O45 | AU1: O46 | AV1: O47 | AW1: O48 | AX1: O49 | AY1: O50 | AZ1: rapor_no
A2: 1
B3: 1. ÖLÇ | C3: 2. ÖLÇ | D3: 3. ÖLÇ | E3: 4. ÖLÇ | F3: 5. ÖLÇ | G3: 6. ÖLÇ | H3: 7. ÖLÇ | X3: F1 | Y3: F2 | Z3: F3 | AA3: F4 | AB3: F5 | AC3: F6 | AD3: F7 | AE3: F8 | AF3: F9 | AG3: F10
B4: 60 | C4: 80 | D4: 120 | E4: 180 | F4: 200 | G4: 240 | H4: 300
B5: EKG NABIZ TESTİ | I5: DALGA ŞEKLİ TESTİ 1 | J5: DALGA ŞEKLİ TESTİ 2 | K5: YAZICI TESTİ | L5: DUYARLILIK TESTİ | M5: ST YÜKSELME VE ÇÖKME | O5: ALARM TESTLERİ | Q5: ARRYTHMIA TEST | X5: FİZİKSEL KONTROL
